fUSD/lending_fUSD_20250117
["ID","MTS","AMOUNT","RATE_DAILY","PERIOD"]
[349322953,1737120638535,-1422.56505477,0.00023199,10]
[349322955,1737120638544,-160.68776878,0.000232,2]
[349322956,1737120638554,-21627.1829641,0.000232,7]
[349322957,1737120638563,-3208487.7013325,0.000232,16]
[349322958,1737120638573,-11228197.68531617,0.000232,2]
[349322960,1737120638584,-45826.57779889,0.000232,2]
[349322961,1737120638633,-7304.72943066,0.000232,2]
[349322962,1737120638661,-31748.62517272,0.000232,2]
[349322963,1737120638672,-651.249959,0.000232,2]
[349322964,1737120638711,-2419.36261074,0.000232,2]
[349322965,1737120638733,-13500.0,0.000232,2]
[349322968,1737120640195,-4086.84681532,0.000232,2]
[349322969,1737120640255,-47807.13512557,0.000232,2]
[349322970,1737120640285,-17722.66766949,0.000232,2]
[349322971,1737120640298,-13618.72975514,0.000232,2]
[349322972,1737120640374,-4102.84048,0.000232,2]
[349322983,1737120643196,-403.46005804,0.000232,2]
[349322984,1737120643207,-3300.00000015,0.000232,2]
[349322985,1737120643217,-1626.293195,0.000232,2]
[349322986,1737120643313,-95050.27949929,0.000232,2]
[349322987,1737120643374,-500.0,0.000232,2]
[349322988,1737120643491,-457.816,0.000232,2]
[349322989,1737120643528,-33.41814834,0.000232,2]
[349322990,1737120643551,-676428.21582926,0.000232,2]
[349322998,1737120646056,-1618.95354221,0.000232,2]
[349322999,1737120646072,-300.75301768,0.000232,2]
[349323000,1737120646121,-5135.0,0.000232,2]
[349323001,1737120646134,-1026.2984981,0.000232,2]
[349323002,1737120646352,-50109.54160029,0.000232,2]
[349323003,1737120646366,-254.57718948,0.000232,2]
[349323005,1737120788475,100000.0,0.00023,120]
[349323006,1737120788501,148995.47169474,0.00023,120]
[349323007,1737120788532,133557.40050544,0.00023,120]
[349323008,1737120788558,50000.0,0.00023,120]
[349323009,1737120788587,10795644.80779982,0.00023,120]
[349323010,1737120883089,-500.0,0.00024657,45]
[349323011,1737120942847,-199500.0,0.000232,16]
[349323012,1737121120338,153.17,0.00010137,2]
[349323015,1737121648097,-153.17,0.00017599,2]
[349323016,1737121648119,-897.8536006,0.0002,2]
[349323017,1737121648141,-660.75170922,0.0002,4]
[349323018,1737121650176,-1960.96583761,0.0002,4]
[349323019,1737121760105,-5377.94524489,0.0002,4]
[349323020,1737121760126,-603.82887052,0.00020193,2]
[349323021,1737121760149,-643.66,0.00020293,2]
[349323022,1737121760173,-603.8288705,0.00020909,2]
[349323023,1737121760194,-150.0,0.00020986,2]
[349323024,1737121760215,-7155.44105219,0.00020986,2]
[349323029,1737121832350,-300.0,0.00020985,2]
[349323030,1737121832360,-600.0,0.00021,2]
[349323031,1737121832370,-250.0,0.00021599,2]
[349323032,1737121832379,-507.3728702,0.00021625,2]
[349323033,1737121832388,-603.8288705,0.00021625,2]
[349323034,1737121832397,-300.0,0.00021657,2]
[349323035,1737121832407,-506.22125084,0.00021708,2]
[349323036,1737121832416,-157.57702846,0.00021709,2]
[349323037,1737121832560,-23742.42297154,0.00021709,2]
[349323038,1737121832569,-553.97,0.00021725,2]
[349323039,1737121832579,-1688.21,0.00021729,2]
[349323040,1737121832589,-500.0,0.00021731,2]
[349323041,1737121832598,-880.22,0.00021749,2]
[349323042,1737121832608,-2282.32,0.00021753,2]
[349323043,1737121832618,-250.0,0.00021761,2]
[349323044,1737121832628,-185.4,0.00021774,2]
[349323045,1737121832638,-1000.0,0.00021879,2]
[349323046,1737121832647,-250.0,0.00021962,2]
[349323047,1737121832657,-1500.0,0.00021991,2]
[349323048,1737121832667,-162.72,0.00022019,2]
[349323049,1737121832677,-421.76103696,0.0002204,2]
[349323050,1737121832686,-2812.072,0.00022184,2]
[349323051,1737121832696,-152.203,0.00022184,2]
[349323052,1737121832705,-1361.56,0.00022184,2]
[349323053,1737121832718,-194.46,0.00022261,2]
[349323054,1737121832727,-2110.0,0.0002236,2]
[349323055,1737121832737,-421.76103696,0.00022398,2]
[349323056,1737121832750,-212.41,0.00022411,2]
[349323057,1737121832759,-5313.93579408,0.00022497,2]
[349323058,1737121832769,-5000.0,0.00022497,2]
[349323059,1737121832778,-5000.0,0.00022497,2]
[349323060,1737121832789,-5000.0,0.00022497,2]
[349323061,1737121832799,-5000.0,0.00022497,2]
[349323062,1737121832808,-1950.0,0.00022511,2]
[349323063,1737121832819,-18348.14,0.00022651,8]
[349323064,1737121832829,-24226.75,0.00022651,8]
[349323065,1737121832839,-2245.71,0.0002267,8]
[349323066,1737121832848,-13062.29503917,0.0002267,8]
[349323067,1737121832860,-4345.09095136,0.0002267,8]
[349323068,1737121832871,-17673.21400947,0.0002267,8]
[349323069,1737121832880,-11544.91,0.0002267,8]
[349323070,1737121832890,-421.76103696,0.00022673,2]
[349323071,1737121832899,-19145.72174521,0.000227,8]
[349323072,1737121832910,-2097.72946846,0.000227,8]
[349323073,1737121832930,-1116.28322968,0.000227,8]
[349323074,1737121832975,-718.63,0.00019808,2]
[349323075,1737121832985,-18536.10001368,0.00021625,2]
[349323076,1737121832994,-7831.06923293,0.000227,8]
[349323077,1737121833006,-28694.10421015,0.000227,8]
[349323080,1737121833017,-5702.71211357,0.000227,8]
[349323081,1737121833027,-2425.38426045,0.00022711,8]
[349323096,1737121838284,-718.63,0.00022072,2]
[349323097,1737121838293,-23777.58079942,0.00022711,8]
[349323098,1737121838305,-3600.0,0.00022711,8]
[349323099,1737121838317,-5187.0,0.00022711,8]
[349323100,1737121838329,-16093.18494013,0.00022711,8]
[349323101,1737121838339,-2110.0,0.0002286,2]
[349323102,1737121838348,-421.76103698,0.00022951,2]
[349323103,1737121838357,-2791.73926611,0.0002297,2]
[349323104,1737121838367,-2644.08962486,0.0002297,2]
[349323105,1737121838376,-3000.0,0.0002297,2]
[349323106,1737121838386,-456.56229937,0.00023,2]
[349323107,1737121838395,-300.0,0.00023,3]
[349323108,1737121838404,-450.66354887,0.00023,2]
[349323109,1737121838413,-1361.56,0.00023005,2]
[349323110,1737121838423,-450.66354886,0.00023005,2]
[349323111,1737121838432,-450.66354886,0.00023011,2]
[349323112,1737121838442,-450.66354886,0.00023016,2]
[349323113,1737121838451,-177.3,0.0002302,2]
[349323114,1737121838460,-450.66354886,0.00023021,2]
[349323115,1737121838471,-450.66354886,0.00023026,2]
[349323116,1737121838480,-450.66354886,0.00023032,2]
[349323117,1737121838490,-29360.21226368,0.00023036,2]
[349323118,1737121838499,-450.66354886,0.00023037,2]
[349323119,1737121838508,-450.66354886,0.00023042,2]
[349323120,1737121838518,-450.66354886,0.00023047,2]
[349323121,1737121838527,-450.66354886,0.00023053,2]
[349323122,1737121838536,-450.66354886,0.00023058,2]
[349323123,1737121838546,-450.66354886,0.00023063,2]
[349323124,1737121838555,-450.66354886,0.00023068,2]
[349323125,1737121838565,-29360.21226368,0.00023069,2]
[349323126,1737121838574,-450.66354886,0.00023074,2]
[349323127,1737121838584,-450.66354886,0.00023079,2]
[349323128,1737121838593,-1322.14992165,0.00023083,2]
[349323129,1737121838603,-29360.21226368,0.00023084,2]
[349323130,1737121838612,-450.66354886,0.00023084,2]
[349323131,1737121838621,-29360.21226368,0.00023084,2]
[349323132,1737121838631,-179999.999999,0.000231,2]
[349323133,1737121838640,-5800.0,0.000231,2]
[349323134,1737121838650,-2893.17734278,0.000231,2]
[349323135,1737121838660,-25312.69532905,0.000231,2]
[349323136,1737121838669,-10526.97565323,0.000231,2]
[349323137,1737121838678,-477.14011028,0.000231,2]
[349323138,1737121838688,-3481.67459563,0.000231,2]
[349323140,1737121838697,-1030.98893245,0.000231,2]
[349323142,1737121838706,-1322.14992165,0.00023107,2]
[349323143,1737121838716,-1322.14992165,0.00023127,2]
[349323144,1737121838726,-29360.21226368,0.00023136,2]
[349323145,1737121838735,-29360.21226368,0.00023138,2]
[349323146,1737121838746,-1322.14992165,0.0002314,2]
[349323147,1737121838757,-1322.14992165,0.0002315,2]
[349323149,1737121838767,-29360.21226368,0.00023155,2]
[349323150,1737121838776,-29360.21226368,0.00023157,2]
[349323151,1737121838785,-1322.14992165,0.00023158,2]
[349323152,1737121838796,-1322.14992165,0.00023163,2]
[349323153,1737121838805,-500.0,0.00023173,2]
[349323154,1737121838814,-500.0,0.00023173,2]
[349323155,1737121838825,-159.94565962,0.00023173,2]
[349323156,1737121838834,-151.93245353,0.00023173,2]
[349323157,1737121838843,-150.93159663,0.00023173,2]
[349323158,1737121838853,-151.94175889,0.00023173,2]
[349323159,1737121838863,-160.73848294,0.00023173,2]
[349323160,1737121838873,-207.03726797,0.00023173,2]
[349323161,1737121838882,-500.0,0.00023173,2]
[349323162,1737121838892,-9794.0,0.00023178,2]
[349323163,1737121838901,-6169.0,0.00023178,2]
[349323164,1737121838910,-159.12686797,0.00023189,2]
[349323165,1737121838920,-217.82717363,0.00023189,2]
[349323166,1737121838929,-1322.14992165,0.0002319,2]
[349323167,1737121838938,-215.06590406,0.0002319,2]
[349323168,1737121838947,-20113.06,0.0002319,3]
[349323169,1737121838956,-215.06590406,0.0002319,2]
[349323170,1737121838966,-672.44042542,0.00023199,2]
[349323171,1737121838976,-1422.56505477,0.00023199,10]
[349323172,1737121838985,-500.0,0.00023199,2]
[349323173,1737121838994,-3149218.01942929,0.000232,16]
[349323174,1737121839003,-21627.1829641,0.000232,7]
[349323175,1737121839012,-12321036.90948338,0.000232,2]
[349323176,1737121839025,-675.45744823,0.000232,2]
[349323177,1737121839048,-19574.93088,0.000232,2]
[349323178,1737121839059,-853.7522808,0.000232,2]
[349323179,1737121839070,-15000.0,0.000232,2]
[349323180,1737121839081,-6808.18274438,0.000232,2]
[349323181,1737121839092,-254.34912242,0.000232,2]
[349323182,1737121839113,-377.21328428,0.000232,2]
[349323183,1737121839186,-210616.96305015,0.000232,2]
[349323184,1737121839198,-13400.0,0.000232,2]
[349323185,1737121839211,-503.7796316,0.000232,2]
[349323186,1737121839224,-190812.28106188,0.000232,2]
[349323187,1737121839235,-2990.62760092,0.000232,2]
[349323190,1737121840684,-548.72783516,0.000232,2]
[349323191,1737121840757,-5497825.91467714,0.000232,2]
[349323193,1737121842844,4047.60610761,0.00015,2]
[349323196,1737121843359,-332.9560099,0.00023089,2]
[349323197,1737121843492,-117.70753896,0.00023089,2]
[349323198,1737121843502,-4006.51337945,0.000232,2]
[349323199,1737121843513,-4077.63190432,0.000232,2]
[349323200,1737121843565,-1702.67347296,0.000232,2]
[349323201,1737121843577,-2116.18507844,0.000232,2]
[349323202,1737121843589,-1574.72478051,0.000232,2]
[349323203,1737121843601,-3299.99999985,0.000232,2]
[349323236,1737121846453,-277.1449995,0.000232,2]
[349323237,1737121846465,-256.59316791,0.000232,2]
[349323238,1737121846486,-5112.01750414,0.000232,2]
[349323239,1737121846498,-643.8,0.000232,2]
[349323240,1737121846509,-1792.98519731,0.000232,2]
[349323241,1737121846520,-8230.02121137,0.000232,2]
[349323242,1737121846534,-1523.83944919,0.000232,2]
[349323243,1737121846550,-6380.90799268,0.000232,2]
[349323244,1737121846659,-12165.57440817,0.000232,2]
[349323245,1737121846687,-48640.3466608,0.000232,2]
[349323246,1737121846701,-1290.470036,0.000232,2]
[349323249,1737121977797,156.83,0.00010137,2]
[349323251,1737122205970,274.72,0.00022344,120]
[349323252,1737122250409,4442.95471127,0.00024,120]
[349323256,1737122640422,3000.0,0.0002,2]
[349323257,1737122663311,-20113.0,0.00021748,2]
[349323258,1737122663340,-1000.0,0.00021884,2]
[349323259,1737122663367,-3032.81,0.000219,2]
[349323260,1737122663395,-8302.59,0.000219,2]
[349323261,1737122663424,-1070.28,0.00021935,2]
[349323262,1737122663478,-170.13,0.00021994,2]
[349323263,1737122667152,166.37,0.00017606,2]
[349323264,1737122667422,23900.0,0.00021911,2]
[349323266,1737122689505,-250.0,0.00022008,2]
[349323267,1737122689533,-1283.83,0.00022052,2]
[349323268,1737122689560,-250.0,0.00022087,2]
[349323269,1737122689587,-3366.99,0.00022175,2]
[349323270,1737122689613,-1125.84,0.00022219,2]
[349323271,1737122689643,-1500.0,0.00022259,2]
[349323272,1737122689671,-1676.2,0.00022259,2]
[349323273,1737122689698,-150.0,0.00022264,2]
[349323274,1737122689730,-160.63,0.00022278,2]
[349323275,1737122689758,-164.04,0.00022322,2]
[349323276,1737122689787,-276.91,0.00022365,2]
[349323277,1737122689815,-872.0,0.00022416,2]
[349323278,1737122689843,-250.0,0.00022416,2]
[349323279,1737122689870,-562.13,0.00022464,2]
[349323280,1737122689896,-1364.2,0.00022464,2]
[349323281,1737122689923,-166.72,0.00022528,2]
[349323282,1737122689951,-554.67015028,0.000229,2]
[349323283,1737122689980,-150.0,0.00022999,2]
[349323284,1737122690009,-348.0,0.00023,2]
[349323285,1737122690041,-3512.799,0.00023,2]
[349323286,1737122690069,-159.458,0.00023,2]
[349323287,1737122690098,-2231.54647436,0.00023,2]
[349323288,1737122690129,-168.12076729,0.00023,2]
[349323289,1737122690156,-2438.86961931,0.00023,2]
[349323290,1737122690183,-168.12076724,0.00023005,2]
[349323291,1737122690214,-168.12076724,0.00023011,2]
[349323292,1737122690242,-2438.86961928,0.00023011,2]
[349323293,1737122690270,-3732.26903296,0.00023015,2]
[349323294,1737122690297,-168.12076724,0.00023016,2]
[349323295,1737122690558,-200.0,0.00023016,2]
[349323296,1737122690584,-2865.19391702,0.00023018,2]
[349323297,1737122690611,-279.39783796,0.0002302,2]
[349323298,1737122690638,-168.12076724,0.00023021,2]
[349323299,1737122690664,-2865.19391702,0.00023022,2]
[349323300,1737122690690,-2438.86961928,0.00023022,2]
[349323301,1737122690721,-4471.66425171,0.00023023,2]
[349323302,1737122690750,-3670.02653296,0.00023023,2]
[349323303,1737122690778,-2865.19391702,0.00023024,2]
[349323304,1737122690807,-168.12076724,0.00023026,2]
[349323305,1737122690840,-661.07496083,0.00023029,2]
[349323306,1737122690871,-168.12076724,0.00023032,2]
[349323307,1737122690902,-2438.86961928,0.00023033,2]
[349323308,1737122690931,-4471.66425171,0.00023036,2]
[349323309,1737122690959,-168.12076724,0.00023037,2]
[349323310,1737122690988,-898.22348438,0.00023037,2]
[349323311,1737122691017,-495.80622062,0.0002304,2]
[349323312,1737122691051,-168.12076724,0.00023042,2]
[349323313,1737122691082,-661.07496083,0.00023043,2]
[349323314,1737122691110,-2438.86961928,0.00023044,2]
[349323315,1737122691142,-661.07496083,0.00023045,2]
[349323316,1737122691169,-168.12076724,0.00023047,2]
[349323317,1737122691202,-200.0,0.00023049,2]
[349323318,1737122691230,-495.80622062,0.00023049,2]
[349323319,1737122691257,-168.12076724,0.00023053,2]
[349323320,1737122691291,-3670.02653296,0.00023053,2]
[349323321,1737122691325,-4471.66425171,0.00023056,2]
[349323322,1737122691354,-2438.86961928,0.00023056,2]
[349323323,1737122691383,-2865.19391702,0.00023056,2]
[349323324,1737122691413,-7340.05306592,0.00023056,2]
[349323325,1737122691444,-200.0,0.00023057,2]
[349323326,1737122691474,-200.0,0.00023058,2]
[349323327,1737122691502,-168.12076724,0.00023058,2]
[349323328,1737122691532,-898.22348438,0.00023059,2]
[349323329,1737122691561,-168.12076724,0.00023063,2]
[349323330,1737122691589,-898.22348438,0.00023064,2]
[349323331,1737122691616,-2438.86961928,0.00023067,2]
[349323332,1737122691644,-168.12076724,0.00023068,2]
[349323333,1737122691676,-5339.5367735,0.00023072,2]
[349323334,1737122691704,-252.03419062,0.00023073,2]
[349323335,1737122691732,-151.93220235,0.00023073,2]
[349323336,1737122691761,-207.03726797,0.00023073,2]
[349323337,1737122691788,-500.0,0.00023073,2]
[349323338,1737122691815,-159.92772121,0.00023073,2]
[349323339,1737122691843,-5339.5367735,0.00023074,2]
[349323340,1737122691870,-168.12076724,0.00023074,2]
[349323341,1737122691899,-279.39783796,0.00023075,2]
[349323342,1737122691929,-3670.02653296,0.00023075,2]
[349323343,1737122691956,-2438.86961928,0.00023078,2]
[349323344,1737122691985,-11010.07959888,0.00023078,2]
[349323345,1737122692014,-168.12076724,0.00023079,2]
[349323346,1737122692045,-2865.19391702,0.00023079,2]
[349323347,1737122692074,-279.39783796,0.0002308,2]
[349323348,1737122692105,-3732.26903296,0.0002308,2]
[349323349,1737122692136,-2865.19391702,0.00023082,2]
[349323350,1737122692164,-3670.02653296,0.00023082,2]
[349323351,1737122692193,-3732.26903296,0.00023083,2]
[349323352,1737122692220,-495.80622062,0.00023083,2]
[349323353,1737122692247,-168.12076724,0.00023084,2]
[349323354,1737122692275,-11010.07959888,0.00023086,2]
[349323355,1737122692304,-3670.02653296,0.00023087,2]
[349323356,1737122692334,-11010.07959888,0.00023087,2]
[349323357,1737122692364,-2438.86961928,0.00023089,2]
[349323358,1737122692393,-168.12076724,0.00023089,2]
[349323359,1737122692437,-3670.02653296,0.0002309,2]
[349323360,1737122692471,-4471.66425171,0.00023091,2]
[349323361,1737122692501,-5339.5367735,0.00023091,2]
[349323362,1737122692532,-3732.26903296,0.00023092,2]
[349323363,1737122692565,-168.12076724,0.00023095,2]
[349323364,1737122692595,-279.39783796,0.00023095,2]
[349323365,1737122692626,-217.82717363,0.00023099,2]
[349323366,1737122692657,-159.12686797,0.00023099,2]
[349323367,1737122692687,-3732.26903296,0.00023099,2]
[349323368,1737122692717,-149857.31246909,0.000231,2]
[349323369,1737122692746,-279.39783796,0.000231,2]
[349323370,1737122692776,-8500.0,0.000231,2]
[349323371,1737122692799,-250.0,0.000231,2]
[349323372,1737122692819,-154.113323,0.0002088,16]
[349323373,1737122692828,-1129.716677,0.000231,2]
[349323374,1737122692840,-250.0,0.000231,2]
[349323375,1737122692852,-3366.99,0.000231,2]
[349323376,1737122692869,-1125.84,0.000231,2]
[349323377,1737122692881,-1500.0,0.000231,2]
[349323378,1737122692897,-1676.2,0.000231,2]
[349323379,1737122692914,-150.0,0.000231,2]
[349323380,1737122692930,-160.63,0.000231,2]
[349323381,1737122692959,-164.04,0.000231,2]
[349323382,1737122692987,-276.91,0.000231,2]
[349323383,1737122692999,-872.0,0.000231,2]
[349323384,1737122693015,-250.0,0.000231,2]
[349323385,1737122693051,-562.13,0.000231,2]
[349323386,1737122693063,-1364.2,0.000231,2]
[349323387,1737122693080,-166.72,0.000231,2]
[349323388,1737122693092,-554.67015028,0.000231,2]
[349323389,1737122693110,-150.0,0.000231,2]
[349323390,1737122693130,-348.0,0.000231,2]
[349323391,1737122693148,-3512.799,0.000231,2]
[349323392,1737122693174,-159.458,0.000231,2]
[349323393,1737122693192,-2231.54647436,0.000231,2]
[349323394,1737122693212,-168.12076729,0.000231,2]
[349323395,1737122693229,-2438.86961931,0.000231,2]
[349323396,1737122693246,-168.12076724,0.000231,2]
[349323397,1737122693268,-168.12076724,0.000231,2]
[349323398,1737122693286,-2438.86961928,0.000231,2]
[349323399,1737122693305,-3732.26903296,0.000231,2]
[349323400,1737122693324,-168.12076724,0.000231,2]
[349323401,1737122693411,-200.0,0.000231,2]
[349323402,1737122693467,-2865.19391702,0.000231,2]
[349323403,1737122693515,-279.39783796,0.000231,2]
[349323404,1737122693554,-168.12076724,0.000231,2]
[349323405,1737122693570,-2865.19391702,0.000231,2]
[349323406,1737122693586,-2438.86961928,0.000231,2]
[349323407,1737122693602,-4471.66425171,0.000231,2]
[349323408,1737122693621,-3670.02653296,0.000231,2]
[349323409,1737122693636,-2865.19391702,0.000231,2]
[349323410,1737122693651,-168.12076724,0.000231,2]
[349323411,1737122693667,-661.07496083,0.000231,2]
[349323412,1737122693679,-168.12076724,0.000231,2]
[349323413,1737122693708,-2438.86961928,0.000231,2]
[349323414,1737122693720,-4471.66425171,0.000231,2]
[349323415,1737122693743,-168.12076724,0.000231,2]
[349323416,1737122693754,-898.22348438,0.000231,2]
[349323417,1737122693766,-495.80622062,0.000231,2]
[349323418,1737122693789,-168.12076724,0.000231,2]
[349323419,1737122693802,-661.07496083,0.000231,2]
[349323420,1737122693817,-2438.86961928,0.000231,2]
[349323421,1737122693828,-661.07496083,0.000231,2]
[349323422,1737122693842,-168.12076724,0.000231,2]
[349323423,1737122693857,-200.0,0.000231,2]
[349323424,1737122693876,-495.80622062,0.000231,2]
[349323425,1737122693887,-168.12076724,0.000231,2]
[349323426,1737122693899,-3670.02653296,0.000231,2]
[349323427,1737122694144,-4471.66425171,0.000231,2]
[349323428,1737122694160,-2438.86961928,0.000231,2]
[349323429,1737122694178,-2865.19391702,0.000231,2]
[349323430,1737122694194,-7340.05306592,0.000231,2]
[349323431,1737122694209,-200.0,0.000231,2]
[349323432,1737122694230,-200.0,0.000231,2]
[349323433,1737122694245,-168.12076724,0.000231,2]
[349323434,1737122694256,-898.22348438,0.000231,2]
[349323435,1737122694275,-168.12076724,0.000231,2]
[349323436,1737122694291,-898.22348438,0.000231,2]
[349323437,1737122694302,-2438.86961928,0.000231,2]
[349323438,1737122694318,-168.12076724,0.000231,2]
[349323439,1737122694334,-5339.5367735,0.000231,2]
[349323440,1737122694350,-252.03419062,0.000231,2]
[349323441,1737122694367,-151.93220235,0.000231,2]
[349323442,1737122694382,-207.03726797,0.000231,2]
[349323443,1737122694394,-500.0,0.000231,2]
[349323444,1737122694410,-159.92772121,0.000231,2]
[349323445,1737122694426,-5339.5367735,0.000231,2]
[349323446,1737122694437,-168.12076724,0.000231,2]
[349323447,1737122694449,-279.39783796,0.000231,2]
[349323448,1737122694465,-3670.02653296,0.000231,2]
[349323449,1737122694551,-2438.86961928,0.000231,2]
[349323450,1737122694572,-11010.07959888,0.000231,2]
[349323451,1737122694584,-168.12076724,0.000231,2]
[349323452,1737122694603,-2865.19391702,0.000231,2]
[349323453,1737122694615,-279.39783796,0.000231,2]
[349323454,1737122694635,-3732.26903296,0.000231,2]
[349323455,1737122694648,-2865.19391702,0.000231,2]
[349323456,1737122694663,-3670.02653296,0.000231,2]
[349323457,1737122694675,-3732.26903296,0.000231,2]
[349323458,1737122694690,-495.80622062,0.000231,2]
[349323459,1737122694701,-168.12076724,0.000231,2]
[349323460,1737122694716,-11010.07959888,0.000231,2]
[349323461,1737122694733,-3670.02653296,0.000231,2]
[349323462,1737122694748,-11010.07959888,0.000231,2]
[349323463,1737122694763,-2438.86961928,0.000231,2]
[349323464,1737122694777,-168.12076724,0.000231,2]
[349323465,1737122694789,-3670.02653296,0.000231,2]
[349323466,1737122694805,-4471.66425171,0.000231,2]
[349323467,1737122694816,-5339.5367735,0.000231,2]
[349323468,1737122694831,-3732.26903296,0.000231,2]
[349323469,1737122694854,-168.12076724,0.000231,2]
[349323470,1737122694869,-279.39783796,0.000231,2]
[349323471,1737122694884,-217.82717363,0.000231,2]
[349323472,1737122694900,-159.12686797,0.000231,2]
[349323473,1737122694916,-3732.26903296,0.000231,2]
[349323474,1737122694935,-149857.31246909,0.000231,2]
[349323475,1737122694947,-279.39783796,0.000231,2]
[349323476,1737122694958,-8500.0,0.000231,2]
[349323477,1737122694976,-62799.88897667,0.000231,2]
[349323478,1737122694986,-179999.999999,0.000231,2]
[349323479,1737122694996,-5800.0,0.000231,2]
[349323480,1737122695006,-718.75678956,0.000231,2]
[349323481,1737122695015,-168.12076724,0.000231,2]
[349323482,1737122695027,-3481.67459563,0.000231,2]
[349323483,1737122695037,-14643.35218719,0.000231,2]
[349323484,1737122695047,-477.14011028,0.000231,2]
[349323485,1737122695058,-2893.17734278,0.000231,2]
[349323486,1737122695070,-1370.11327287,0.000231,2]
[349323487,1737122695080,-2438.86961928,0.000231,2]
[349323488,1737122695090,-5339.5367735,0.000231,2]
[349323489,1737122695101,-7340.05306592,0.00023104,2]
[349323490,1737122695113,-3732.26903296,0.00023107,2]
[349323491,1737122695125,-898.22348438,0.00023109,2]
[349323492,1737122695138,-11010.07959888,0.0002311,2]
[349323493,1737122695149,-2865.19391702,0.00023112,2]
[349323494,1737122695160,-661.07496083,0.00023113,2]
[349323495,1737122695170,-279.39783796,0.00023114,2]
[349323496,1737122695180,-661.07496083,0.00023114,2]
[349323497,1737122695189,-661.07496083,0.00023123,2]
[349323498,1737122695199,-3670.02653296,0.00023128,2]
[349323499,1737122695210,-3670.02653296,0.00023128,2]
[349323500,1737122695220,-7340.05306592,0.00023128,2]
[349323501,1737122695230,-11010.07959888,0.0002313,2]
[349323502,1737122695240,-11010.07959888,0.00023131,2]
[349323503,1737122695251,-3732.26903296,0.00023131,2]
[349323504,1737122695261,-7340.05306592,0.00023132,2]
[349323505,1737122695271,-279.39783796,0.00023132,2]
[349323506,1737122695281,-495.80622062,0.00023133,2]
[349323507,1737122695291,-3670.02653296,0.00023136,2]
[349323508,1737122695302,-4471.66425171,0.00023138,2]
[349323509,1737122695312,-2865.19391702,0.00023138,2]
[349323510,1737122695322,-5339.5367735,0.00023139,2]
[349323511,1737122695332,-898.22348438,0.0002314,2]
[349323512,1737122695342,-495.80622062,0.00023142,2]
[349323513,1737122695352,-3732.26903296,0.00023142,2]
[349323514,1737122695362,-495.80622062,0.00023145,2]
[349323515,1737122695372,-3670.02653296,0.00023151,2]
[349323516,1737122695382,-495.80622062,0.00023152,2]
[349323517,1737122695392,-3670.02653296,0.00023153,2]
[349323518,1737122695401,-7340.05306592,0.00023155,2]
[349323519,1737122695411,-200.0,0.00023157,2]
[349323520,1737122695421,-200.0,0.00023158,2]
[349323521,1737122695431,-898.22348438,0.00023159,2]
[349323522,1737122695441,-3670.02653296,0.00023159,2]
[349323523,1737122695451,-2564.83163474,0.00023162,2]
[349323540,1737122828096,-505.29761794,0.000201,2]
[349323541,1737122828119,-1163.96685945,0.00021267,2]
[349323542,1737122841085,-133.01314055,0.00021267,2]
[349323543,1737122841109,-330.04739493,0.00021699,2]
[349323564,1737123031612,-169.95260507,0.00021699,2]
[349323565,1737123031622,-1297.15,0.00022236,2]
[349323566,1737123031632,-824.31,0.00022262,2]
[349323567,1737123031641,-200.0,0.00022273,2]
[349323568,1737123031651,-300.0,0.00022283,2]
[349323569,1737123031660,-268.54599457,0.00022284,2]
[349323570,1737123031673,-1731.45400543,0.00022284,2]
[349323571,1737123031682,-2742.24,0.00022284,2]
[349323572,1737123031691,-500.0,0.000223,2]
[349323573,1737123031700,-524.23,0.00022317,2]
[349323574,1737123031710,-500.0,0.00022877,2]
[349323575,1737123031719,-3000.0,0.0002297,2]
[349323576,1737123031730,-456.56229937,0.00023,2]
[349323577,1737123031740,-717.2344,0.00023073,2]
[349323578,1737123031750,-341.45444834,0.000231,2]
[349323579,1737123031759,-6309.28968405,0.000231,2]